bitfinex/quotes_SOLUSD_20220212
["timestamp","ask_amount","ask_price","bid_price","bid_amount"]
[1644648303974,113.0,93.591,93.53,12.67]
[1644648304175,113.0,93.646,93.54,12.67]
[1644648304373,113.0,93.646,93.542,4.18319]
[1644648304575,113.0,93.607,93.542,4.18319]
[1644648304774,5.343,93.689,93.55,16.0286]
[1644648304775,114.41458463,93.669,93.55,16.0286]
[1644648304972,113.0,93.669,93.56,12.67]
[1644648305172,7.66858869,93.595,93.562,4.18229]
[1644648305374,7.66858869,93.595,93.57,53.4134]
[1644648305572,7.66858869,93.595,93.58,12.67]
[1644648305573,10.82012205,93.595,93.58,12.67]
[1644648305774,10.82012205,93.595,93.581,4.18145]
[1644648306273,10.82012205,93.595,93.524,5.341]
[1644648306478,10.82012205,93.595,93.53,66.1098]
[1644648307074,42.87311634,93.595,93.53,66.1098]
[1644648307275,74.92611063,93.595,93.54,16.0336]
[1644648307475,5.25259967,93.674,93.57,53.4142]
[1644648307678,113.0,93.629,93.57,12.67]
[1644648307878,37.34833374,93.628,93.57,12.67]
[1644648308278,113.0,93.629,93.57,28.6986]
[1644648308678,113.0,93.629,93.571,5.341]
[1644648308878,113.0,93.629,93.57,12.67]
[1644648309880,36.93450242,93.632,93.58,16.0248]
[1644648310080,45.59923597,93.595,93.544,1.50203153]
[1644648310284,45.59923597,93.595,93.53,53.4345]
[1644648310285,77.65223026,93.595,93.53,53.4345]
[1644648310582,33.49703515,93.595,93.53,66.1045]
[1644648310786,33.49703515,93.595,93.54,16.0332]
[1644648311385,46.52798495,93.594,93.51,53.4514]
[1644648311595,51.87098495,93.594,93.498,1.50203153]
[1644648311786,51.87098495,93.594,93.49,12.67]
[1644648311986,46.52798495,93.594,93.52,16.0366]
[1644648312185,5.345,93.593,93.52,16.0366]
[1644648316288,46.52798495,93.594,93.52,16.0366]
[1644648317989,46.52798495,93.594,93.52,28.7066]
[1644648319890,33.49703515,93.595,93.52,28.7066]
[1644648320090,33.49703515,93.595,93.521,2.38366791]
[1644648320291,33.49703515,93.595,93.54,16.0286]
[1644648320489,33.49703515,93.595,93.55,12.67]
[1644648320689,33.49703515,93.595,93.551,5.343]
[1644648320891,33.49703515,93.595,93.55,12.67]
[1644648321290,33.49703515,93.595,93.56,16.027]
[1644648321494,33.49703515,93.595,93.57,12.67]
[1644648322490,33.49703515,93.595,93.57,28.6976]
[1644648323294,5.341,93.691,93.571,2.38366791]
[1644648323492,5.34,93.692,93.59,16.0211]
[1644648323692,5.34,93.707,93.6,12.67]
[1644648324091,42.65879375,93.706,93.6,12.67]
[1644648324495,5.338,93.705,93.6,12.67]
[1644648325193,16.93314411,93.704,93.6,12.67]
[1644648325391,5.338,93.703,93.6,12.67]
[1644648325693,3.35969429,93.595,93.58,53.4037]
[1644648325895,113.0,93.667,93.59,12.67]
[1644648326395,113.0,93.667,93.591,2.38366791]
[1644648326598,113.0,93.667,93.59,12.67]
[1644648328294,113.0,93.667,93.59,28.6942]
[1644648328695,32.05299429,93.595,93.59,28.6942]
[1644648328895,32.05299429,93.595,93.59,29.12668345]
[1644648329500,32.05299429,93.595,93.59,13.10248345]
[1644648330297,31.96093301,93.595,93.59,13.10248345]
[1644648330499,2.98223301,93.595,93.591,5.341]
[1644648331700,113.0,93.667,93.6,16.0203]
[1644648331998,5.341,93.713,93.61,12.67]
[1644648332206,5.338,93.725,93.62,12.67]
[1644648332402,113.0,93.734,93.63,12.67]
[1644648332602,34.68078754,93.733,93.64,12.67]
[1644648332901,34.68078754,93.733,93.65,12.67]
[1644648333101,34.68078754,93.733,93.66,12.67]
[1644648333902,34.68078754,93.733,93.66,28.6825]
[1644648334405,113.0,93.734,93.66,28.6825]
[1644648334604,113.0,93.734,93.65,49.99720571]
[1644648334805,113.0,93.734,93.66,12.67]
[1644648335003,113.0,93.734,93.661,5.336]
[1644648335203,1.41458463,93.78,93.68,16.0063]
[1644648335204,0.03314606,93.78,93.68,16.0063]
[1644648335406,0.03314606,93.76,93.69,12.67]
[1644648335605,0.03314606,93.78,93.7,12.67]
[1644648335805,0.03314606,93.77,93.71,12.67]
[1644648336034,0.03314606,93.78,93.72,12.67]
[1644648336231,113.0,93.788,93.73,15.9997]
[1644648336431,113.0,93.788,93.73,28.6697]
[1644648337035,113.0,93.788,93.73,12.67]
[1644648337231,36.06085279,93.786,93.7,12.67]
[1644648337438,5.333,93.785,93.7,12.67]
[1644648337632,34.0,93.784,93.69,33.95490571]
[1644648337832,34.0,93.784,93.7,12.67]
[1644648338032,5.333,93.783,93.7,12.67]
[1644648338332,35.56085279,93.786,93.7,28.6751]
[1644648338532,35.56085279,93.786,93.7,12.67]
[1644648338935,5.333,93.785,93.7,12.67]
[1644648339135,5.333,93.785,93.67,12.67]
[1644648339136,7.71666791,93.785,93.67,12.67]
[1644648339335,16.0108,93.78,93.67,12.67]
[1644648339536,5.333,93.779,93.65,12.67]
[1644648339839,45.88077153,93.745,93.65,12.67]
[1644648340038,113.0,93.746,93.65,12.67]
[1644648340235,113.0,93.746,93.651,2.38366791]
[1644648340436,113.0,93.746,93.66,16.0107]
[1644648340638,32.0,93.744,93.652,19.4104018]
[1644648340837,5.336,93.743,93.66,12.67]
[1644648341138,44.09165304,93.742,93.66,12.67]
[1644648341741,5.336,93.741,93.66,12.67]
[1644648342142,5.336,93.745,93.661,2.38366791]
[1644648342340,113.0,93.746,93.661,2.38366791]
[1644648342542,113.0,93.746,93.67,16.0089]
[1644648342742,113.0,93.746,93.67,28.6789]
[1644648342941,52.38867401,93.745,93.67,28.6789]
[1644648343342,52.38867401,93.745,93.67,12.67]
[1644648343542,52.38867401,93.745,93.635,5.336]
[1644648343842,36.0,93.744,93.65,28.6824]
[1644648344342,5.336,93.743,93.65,28.6824]
[1644648344542,5.336,93.744,93.65,28.6824]
[1644648345943,5.336,93.744,93.62,12.67]
[1644648346145,39.47671427,93.728,93.6,12.67]
[1644648346444,48.72523456,93.695,93.6,12.67]
[1644648347051,48.72523456,93.695,93.573,13.61148047]
[1644648347245,48.72523456,93.695,93.544,398.63180848]
[1644648347246,0.48,93.687,93.544,398.63180848]
[1644648347445,0.03314606,93.69,93.544,398.63180848]
[1644648347446,5.34,93.686,93.544,398.63180848]
[1644648347649,5.34,93.689,93.527,2.38366791]
[1644648347847,0.03314606,93.69,93.563,2.38366791]
[1644648348047,5.34,93.688,93.57,16.0267]
[1644648348250,5.34,93.689,93.57,28.6967]
[1644648348547,5.34,93.689,93.571,2.38366791]
[1644648348746,5.34,93.689,93.57,28.6967]
[1644648350351,16.0291,93.67,93.57,28.6967]
[1644648350551,41.29441512,93.669,93.57,28.6967]
[1644648350759,41.29441512,93.669,93.57,12.67]
[1644648350951,41.29441512,93.669,93.55,28.7005]
[1644648351151,41.29441512,93.669,93.534,13.28706326]
[1644648351353,16.0314,93.66,93.54,12.67]
[1644648351551,5.341,93.659,93.54,12.67]
[1644648352053,5.341,93.667,93.54,12.67]
[1644648352250,5.341,93.658,93.54,12.67]
[1644648352453,16.86092189,93.666,93.54,12.67]
[1644648352854,48.11439285,93.639,93.54,12.67]
[1644648353054,5.341,93.638,93.54,12.67]
[1644648354458,5.341,93.638,93.53,16.0329]
[1644648354863,16.0366,93.63,93.52,12.67]
[1644648355058,5.343,93.629,93.52,12.67]
[1644648355657,48.11439285,93.639,93.52,12.67]
[1644648355658,21.7336,93.638,93.52,12.67]
[1644648355858,5.343,93.628,93.52,12.67]
[1644648356058,5.343,93.638,93.52,12.67]
[1644648356260,16.0385,93.62,93.52,12.67]
[1644648356458,45.68907936,93.619,93.494,13.12095215]
[1644648356659,45.68907936,93.619,93.49,12.67]
[1644648356660,0.48,93.617,93.49,12.67]
[1644648356859,5.344,93.616,93.49,12.67]
[1644648357472,5.344,93.616,93.49,5.05]
[1644648357669,5.344,93.616,93.454,2.38366791]
[1644648357670,0.48,93.547,93.454,2.38366791]
[1644648357869,0.48,93.547,93.44,1.50203153]
[1644648357870,0.48,93.547,93.42,12.67]
[1644648358063,0.48,93.527,93.4,12.67]
[1644648358268,5.349,93.526,93.401,4.1895]
[1644648358464,41.49088524,93.525,93.401,4.1895]
[1644648358662,16.0572,93.51,93.401,4.1895]
[1644648358863,45.61814188,93.509,93.402,2.38366791]
[1644648359063,45.61814188,93.509,93.403,4.18941]
[1644648359467,45.61814188,93.509,93.403,6.57307791]
[1644648360476,45.61814188,93.509,93.392,2.38366791]
[1644648360671,16.0598,93.5,93.349,1.50203153]
[1644648360871,0.48,93.487,93.349,1.50203153]
[1644648361088,5.48,93.457,93.349,1.50203153]
[1644648361270,5.48,93.457,93.33,0.37]
[1644648361471,0.48,93.447,93.33,0.37]
[1644648361668,0.48,93.427,93.33,0.37]
[1644648362072,5.354,93.426,93.33,0.37]
[1644648362295,0.48,93.437,93.33,0.37]
[1644648362494,5.354,93.438,93.33,0.37]
[1644648362692,16.0761,93.41,93.33,0.37]
[1644648362898,5.355,93.429,93.33,0.37]
[1644648363192,40.54778713,93.408,93.33,0.37]
[1644648363589,5.355,93.407,93.33,0.37]
[1644648363989,40.54778713,93.408,93.33,0.37]
[1644648364189,16.0786,93.4,93.33,0.37]
[1644648364689,5.355,93.455,93.33,0.37]
[1644648364690,5.355,93.429,93.33,0.37]
[1644648364892,5.354,93.439,93.33,2.75366791]
[1644648365093,5.354,93.459,93.331,15.66782526]
[1644648365291,38.37929591,93.458,93.34,16.0627]
[1644648365492,5.353,93.484,93.35,12.67]
[1644648365693,23.5649,93.485,93.35,22.16]
[1644648365694,5.352,93.478,93.35,22.16]
[1644648365891,5.352,93.484,93.351,16.87415303]
[1644648366092,23.5649,93.485,93.351,19.25782094]
[1644648366295,5.352,93.505,93.37,16.0573]
[1644648366493,43.70798812,93.504,93.37,16.0573]
[1644648366698,43.70798812,93.504,93.371,2.38366791]
[1644648366895,5.351,93.503,93.38,12.67]
[1644648367094,12.67,93.5,93.358,2.38366791]
[1644648367297,0.48,93.477,93.358,16.2264]
[1644648367496,16.0741,93.44,93.358,16.2264]
[1644648367695,47.2042478,93.439,93.358,16.2264]
[1644648367895,5.353,93.439,93.358,16.2264]
[1644648368205,2.38366791,93.476,93.358,16.2264]
[1644648368396,2.38366791,93.438,93.358,16.2264]
[1644648368595,5.353,93.437,93.358,16.2264]
[1644648368797,35.76742602,93.474,93.358,16.2264]
[1644648369197,2.38366791,93.473,93.358,16.2264]
[1644648369597,35.76742602,93.474,93.358,16.2264]
[1644648369798,5.352,93.473,93.358,16.2264]
[1644648369997,5.352,93.473,93.358,18.61006791]
[1644648370201,5.352,93.473,93.358,16.2264]
[1644648370398,35.76742602,93.474,93.358,16.2264]
[1644648370599,35.76742602,93.474,93.36,12.67]
[1644648370805,5.352,93.508,93.36,12.67]
[1644648371000,5.351,93.517,93.36,12.67]
[1644648371201,5.351,93.508,93.361,2.38366791]
[1644648371401,5.351,93.515,93.361,2.38366791]
[1644648371611,4.12268,93.507,93.36,28.9626]
[1644648371801,0.48,93.497,93.36,16.2926]
[1644648372102,0.48,93.487,93.36,16.2926]
[1644648372303,37.33985722,93.479,93.36,16.2926]
[1644648372501,5.352,93.478,93.36,16.2926]
[1644648372705,0.48,93.467,93.36,16.2926]
[1644648372902,12.67,93.46,93.36,16.2926]
[1644648373103,48.63972351,93.459,93.36,16.2926]
[1644648373502,2.38366791,93.485,93.36,16.2926]
[1644648373702,2.82891165,93.628,93.36,16.2926]
[1644648373703,16.0583,93.51,93.38,16.0583]
[1644648373904,5.349,93.509,93.39,12.67]
[1644648374103,5.349,93.509,93.381,2.38366791]
[1644648374104,7.73266791,93.509,93.381,2.38366791]
[1644648374302,7.73266791,93.509,93.33,0.37]
[1644648374303,12.67,93.5,93.33,0.37]
[1644648374504,0.48,93.477,93.33,0.37]
[1644648374803,48.58475334,93.469,93.33,16.7902]
[1644648375003,12.67,93.46,93.33,16.7902]
[1644648375202,16.0717,93.44,93.33,16.7902]
[1644648375413,12.67,93.46,93.33,16.7902]
[1644648375704,7.73666791,93.459,93.33,16.7902]
[1644648375906,24.39515091,93.459,93.33,16.7902]
[1644648376110,15.90386948,93.458,93.33,16.7902]
[1644648376303,5.353,93.457,93.33,16.7902]
[1644648376709,16.069,93.45,93.33,32.8583]
[1644648376905,45.22304037,93.452,93.33,32.8583]
[1644648377105,45.22304037,93.452,93.33,45.5283]
[1644648377308,5.353,93.451,93.33,45.5283]
[1644648377506,45.22304037,93.452,93.33,45.5283]
[1644648377706,45.22304037,93.452,93.33,32.8583]
[1644648378107,5.353,93.451,93.33,32.8583]
[1644648379510,45.22304037,93.452,93.33,32.8583]
[1644648379908,45.22304037,93.452,93.33,45.5283]
[1644648380410,5.353,93.479,93.33,45.5283]
[1644648381011,5.353,93.489,93.33,45.5283]
[1644648381413,45.41971444,93.488,93.335,1.50203153]
[1644648381613,45.41971444,93.488,93.38,16.0612]
[1644648381814,5.352,93.487,93.38,16.0612]
[1644648382015,5.352,93.487,93.35,66.2073]
[1644648382216,45.41971444,93.488,93.35,66.2073]
[1644648382613,5.352,93.487,93.35,66.2073]
[1644648383214,5.352,93.487,93.35,82.1516]
[1644648383414,14.5628,93.48,93.35,28.6143]
[1644648383617,5.352,93.479,93.35,28.6143]
[1644648384017,5.352,93.479,93.35,28.1143]
[1644648384218,16.64714534,93.478,93.35,28.1143]
[1644648384418,16.0637,93.47,93.35,15.9443]
[1644648384618,38.47922862,93.469,93.359,1.50203153]
[1644648384824,62.87337953,93.469,93.359,1.50203153]
[1644648385022,46.21489653,93.469,93.359,1.50203153]
[1644648385220,19.04215091,93.468,93.359,0.50203153]
[1644648385420,0.48,93.417,93.296,4.45064963]
[1644648385621,0.48,93.417,93.2,158.35]
[1644648385622,0.48,93.397,93.264,4.45064963]
[1644648385819,5.48,93.387,93.234,3.0012391]
[1644648386018,0.48,93.367,93.226,3.0012391]
[1644648386221,0.48,93.367,93.186,157.3222]
[1644648386222,12.67,93.36,93.215,3.0012391]
[1644648386421,39.17482931,93.359,93.215,3.0012391]
[1644648386619,39.17482931,93.359,93.21,19.0863391]
[1644648386620,16.0877,93.35,93.21,19.0863391]
[1644648386819,12.67,93.34,93.21,19.0863391]
[1644648387021,43.57834147,93.339,93.211,6.00958567]
[1644648387219,43.57834147,93.339,93.23,3.0012391]
[1644648387520,43.57834147,93.339,93.232,3.0012391]
[1644648387720,16.0889,93.33,93.229,3.0012391]
[1644648387921,5.36,93.329,93.224,3.0012391]
[1644648388121,12.67,93.33,93.223,3.0012391]
[1644648388321,5.36,93.328,93.227,3.0012391]
[1644648388540,5.36,93.329,93.227,3.0012391]
[1644648388723,5.36,93.329,93.206,3.0012391]
[1644648389121,5.36,93.329,93.205,3.0012391]
[1644648389321,5.36,93.329,93.206,3.0012391]
[1644648389921,16.0904,93.32,93.206,3.0012391]
[1644648390125,12.67,93.31,93.2,3.0012391]
[1644648390324,5.361,93.309,93.186,3.0012391]
[1644648390821,15.7742651,93.308,93.168,3.0012391]
[1644648391021,40.98810279,93.279,93.175,3.0012391]
[1644648391424,40.98810279,93.279,93.18,3.0012391]
[1644648391622,5.362,93.307,93.18,3.0012391]
[1644648391822,5.362,93.307,93.173,3.0012391]
[1644648392020,29.63411838,93.32,93.171,3.00832583]
[1644648392021,2.38366791,93.306,93.171,3.00832583]
[1644648392221,15.7742651,93.306,93.171,3.00832583]
[1644648392422,48.74126725,93.26,93.171,3.00832583]
[1644648392822,48.74126725,93.26,93.18,16.0925]
[1644648393021,48.74126725,93.26,93.19,12.67]
[1644648393221,5.363,93.34,93.263,21.28684288]
[1644648393424,5.36,93.349,93.263,21.28684288]
[1644648393724,45.08983023,93.348,93.263,21.28684288]
[1644648393927,54.88152393,93.348,93.263,21.28684288]
[1644648394124,5.357,93.347,93.263,21.28684288]
[1644648394523,7.74066791,93.347,93.263,21.28684288]
[1644648394723,16.0861,93.34,93.263,21.28684288]
[1644648394924,28.7561,93.34,93.263,21.28684288]
[1644648395123,45.08983023,93.348,93.263,21.28684288]
[1644648395324,5.357,93.347,93.263,21.28684288]
[1644648395523,45.08983023,93.348,93.263,21.28684288]
[1644648395924,5.357,93.347,93.263,21.28684288]
[1644648397332,2.38366791,93.378,93.263,21.28684288]
[1644648397530,113.0,93.389,93.263,21.28684288]
[1644648398234,17.54681633,93.407,93.27,12.67]
[1644648398435,16.0724,93.42,93.27,28.7479]
[1644648398635,5.356,93.435,93.271,5.37259184]
[1644648398838,5.356,93.439,93.272,2.98892393]
[1644648399036,23.2423,93.454,93.273,3.0012391]
[1644648399037,5.355,93.453,93.273,3.0012391]
[1644648399237,5.355,93.453,93.273,30.04597422]
[1644648399436,36.42122211,93.421,93.277,3.0012391]
[1644648399634,36.42122211,93.421,93.29,12.67]
[1644648399834,36.42122211,93.421,93.3,12.67]
[1644648400234,36.42122211,93.421,93.301,5.0]
[1644648400435,36.42122211,93.421,93.301,7.38366791]
[1644648400636,113.0,93.422,93.32,16.0658]
[1644648400839,113.0,93.422,93.31,53.5525]
[1644648400840,2.38366791,93.469,93.33,12.67]
[1644648401135,13.5268035,93.452,93.34,12.67]
[1644648401337,13.5268035,93.452,93.33,12.67]
[1644648401543,36.33007851,93.451,93.33,12.67]
[1644648401938,5.353,93.45,93.33,12.67]
[1644648402138,5.353,93.45,93.33,28.7385]
[1644648402640,2.38366791,93.449,93.33,28.7385]
[1644648402840,5.353,93.448,93.33,28.7385]
[1644648403243,36.33007851,93.451,93.33,28.7385]
[1644648403443,5.353,93.45,93.33,28.7385]
[1644648403652,17.82475845,93.45,93.33,28.7385]
[1644648403854,7.4369869,93.449,93.33,28.7385]
[1644648404059,5.353,93.448,93.33,28.7385]
[1644648404259,2.38366791,93.448,93.33,28.7385]
[1644648404452,7.73666791,93.447,93.33,28.7385]
[1644648404653,16.0693,93.44,93.33,16.0685]
[1644648405053,7.73766791,93.439,93.33,16.0685]
[1644648405453,113.0,93.42,93.33,16.0685]
[1644648405655,42.60016096,93.418,93.33,16.0685]
[1644648406353,5.354,93.417,93.33,16.0685]
[1644648406556,42.60016096,93.418,93.33,16.0685]
[1644648408959,5.354,93.439,93.33,16.0685]
[1644648409164,5.354,93.459,93.36,16.0633]
[1644648409357,2.38366791,93.45,93.36,16.0633]
[1644648409557,2.38366791,93.45,93.33,12.67]
[1644648409758,5.354,93.449,93.33,12.67]
[1644648409958,36.70909391,93.448,93.33,12.67]
[1644648410157,36.70909391,93.448,93.34,16.0666]
[1644648410758,5.353,93.447,93.34,28.7366]
[1644648410957,5.353,93.463,93.34,28.7366]
[1644648411156,113.0,93.465,93.34,28.7366]
[1644648411157,32.11269415,93.421,93.34,28.7366]
[1644648411359,32.11269415,93.421,93.36,16.0586]
[1644648411559,32.11269415,93.421,93.36,28.7286]
[1644648411959,32.11269415,93.421,93.361,2.38366791]
[1644648412558,32.11269415,93.421,93.37,16.059]
[1644648412965,32.11269415,93.421,93.335,2.38366791]
[1644648413161,32.11269415,93.421,93.309,24.2513]
[1644648413360,32.11269415,93.421,93.33,12.67]
[1644648413760,32.11269415,93.421,93.36,16.0637]
[1644648414160,32.11269415,93.421,93.361,5.353]
[1644648414367,32.11269415,93.421,93.36,12.67]
[1644648415362,32.11269415,93.421,93.37,16.0597]
[1644648417464,32.11269415,93.421,93.35,16.0659]
[1644648417664,44.31422295,93.419,93.35,16.0659]
[1644648417865,55.38422295,93.419,93.33,53.553]
[1644648418064,55.38422295,93.419,93.308,454.77253517]
[1644648418065,5.354,93.418,93.308,454.77253517]
[1644648418463,32.11269415,93.421,93.33,16.0695]
[1644648418664,32.11269415,93.421,93.34,12.67]
[1644648419465,32.11269415,93.421,93.341,5.354]
[1644648419664,32.11269415,93.421,93.36,16.0602]
[1644648419863,32.11269415,93.421,93.361,5.353]
[1644648420063,32.11269415,93.421,93.36,12.67]
[1644648420465,4.89249415,93.421,93.361,47.353]
[1644648420663,326.3929,93.534,93.37,16.0589]
[1644648420664,5.353,93.519,93.37,16.0589]
[1644648420865,5.352,93.48,93.38,12.67]
[1644648421064,113.0,93.449,93.38,12.67]
[1644648421265,188.1,93.496,93.38,12.67]
[1644648421468,188.1,93.496,93.381,5.351]
[1644648421665,188.1,93.496,93.381,15.52827148]
[1644648421867,188.1,93.496,93.4,16.052]
[1644648422068,16.0468,93.57,93.382,10.17727148]
[1644648422069,113.0,93.534,93.41,12.67]
[1644648422263,113.0,93.534,93.382,10.17727148]
[1644648422264,113.0,93.534,93.42,12.67]
[1644648422464,113.0,93.534,93.43,12.67]
[1644648422666,113.0,93.534,93.44,12.67]
[1644648422865,113.0,93.534,93.45,12.67]
[1644648423065,113.0,93.534,93.411,10.17727148]
[1644648423066,113.0,93.534,93.46,50.07040585]
[1644648423266,113.0,93.534,93.461,5.347]
[1644648423469,5.349,93.58,93.46,50.07040585]
[1644648423869,34.45816962,93.579,93.46,12.67]
[1644648424171,34.45816962,93.579,93.44,12.67]
[1644648424172,5.346,93.578,93.44,12.67]
[1644648424368,16.0475,93.57,93.45,16.0482]
[1644648424573,5.347,93.569,93.45,16.0482]
[1644648424768,5.347,93.569,93.45,28.7182]
[1644648426169,5.347,93.578,93.441,5.347]
[1644648426369,34.45816962,93.579,93.441,5.347]
[1644648426370,5.347,93.568,93.45,12.67]
[1644648426572,5.347,93.578,93.45,28.7182]
[1644648426771,5.347,93.567,93.45,28.7182]
[1644648426970,5.346,93.578,93.45,28.7182]
[1644648429075,16.0471,93.57,93.44,50.09200585]
[1644648429274,5.347,93.569,93.45,12.67]
[1644648429679,5.347,93.578,93.451,5.347]
[1644648429877,5.347,93.578,93.48,16.0426]
[1644648430875,5.147,93.578,93.48,28.7126]
[1644648431274,113.0,93.618,93.52,16.0315]
[1644648431477,113.0,93.618,93.53,12.67]
[1644648431876,113.0,93.618,93.531,5.343]
[1644648432077,36.47341543,93.617,93.54,53.428]
[1644648432280,113.0,93.618,93.55,16.0311]
[1644648432476,113.0,93.618,93.55,28.7011]
[1644648433378,5.341,93.674,93.55,28.7011]
[1644648433379,113.0,93.653,93.55,28.7011]
[1644648433585,0.03314606,93.64,93.55,28.7011]
[1644648433779,113.0,93.653,93.55,28.7011]
[1644648434781,0.03314606,93.67,93.58,16.0196]
[1644648434978,0.03314606,93.66,93.521,3.08057376]
[1644648435181,0.03314606,93.68,93.56,17.05721757]
[1644648435377,113.0,93.693,93.56,17.05721757]
[1644648435378,0.03314606,93.65,93.57,12.67]
[1644648435676,0.03314606,93.68,93.57,12.67]
[1644648435881,113.0,93.775,93.57,12.67]
[1644648435882,0.03314606,93.74,93.571,113.23781252]
[1644648436077,113.0,93.73,93.571,113.23781252]
[1644648436279,113.03314606,93.73,93.572,30.70871252]
[1644648436478,0.03314606,93.72,93.58,16.0196]
[1644648436779,5.339,93.719,93.59,12.67]
[1644648436979,5.339,93.719,93.591,5.338]
[1644648437179,5.339,93.719,93.591,2.38366791]
[1644648437578,5.339,93.719,93.592,2.38366791]
[1644648437782,5.339,93.719,93.59,12.67]
[1644648437978,0.48,93.717,93.577,2.38366791]
[1644648438182,5.339,93.716,93.57,5.338]
[1644648438383,6.98424592,93.716,93.556,2.38366791]
[1644648438579,5.34,93.715,93.57,12.67]
[1644648438780,113.0,93.691,93.58,16.0247]
[1644648438980,113.0,93.691,93.59,12.67]
[1644648439379,5.339,93.69,93.59,12.67]
[1644648439679,5.339,93.689,93.59,12.67]
[1644648439879,45.3414548,93.688,93.59,28.6939]
[1644648440083,113.0,93.678,93.59,16.0239]
[1644648440481,5.339,93.677,93.59,0.0039]
[1644648440689,54.0,93.676,93.531,5.339]
[1644648440879,0.48,93.647,93.48,19.67]
[1644648441085,12.67,93.64,93.51,0.0074]
[1644648441380,0.48,93.597,93.462,456.34847319]
[1644648441585,35.64716903,93.595,93.462,456.34847319]
[1644648441781,12.67,93.59,93.462,456.34847319]
[1644648441979,5.346,93.589,93.462,456.34847319]
[1644648442181,40.87264812,93.579,93.462,456.34847319]
[1644648442483,12.67,93.57,93.462,456.34847319]
[1644648442884,5.346,93.569,93.462,456.34847319]
[1644648443280,16.0501,93.56,93.462,456.34847319]
[1644648443483,43.32375327,93.559,93.462,456.34847319]
[1644648443680,37.97775327,93.559,93.396,72.1891]
[1644648443881,5.348,93.558,93.426,16.12824849]
[1644648444081,5.348,93.558,93.43,12.67]
[1644648444280,0.00444566,93.421,93.397,24.32993842]
[1644648444482,0.00444566,93.421,93.41,12.67]
[1644648444683,69.2897,93.586,93.464,0.01555434]
[1644648444897,23.1515,93.586,93.464,0.01555434]
[1644648445484,44.95145323,93.585,93.464,0.01555434]
[1644648445682,50.29745323,93.585,93.464,0.01555434]
[1644648445880,113.0,93.579,93.464,0.01555434]
[1644648446081,5.346,93.578,93.464,0.01555434]
[1644648446681,44.95145323,93.585,93.47,16.0428]
[1644648446882,44.95145323,93.585,93.48,12.67]
[1644648447286,5.345,93.584,93.427,14.12279861]
[1644648447481,5.347,93.626,93.459,9.57769307]
[1644648447684,5.347,93.626,93.49,16.0387]
[1644648447885,5.347,93.626,93.5,12.67]
[1644648448083,2.38366791,93.625,93.5,12.67]
[1644648448283,5.344,93.624,93.5,12.67]
[1644648448682,2.38366791,93.623,93.5,12.67]
[1644648448884,5.344,93.622,93.53,16.0339]
[1644648449084,5.344,93.623,93.53,16.0339]
[1644648449284,5.343,93.624,93.53,16.0339]
[1644648450086,12.67,93.62,93.51,16.0386]
[1644648450283,68.0,93.618,93.48,21.35320585]
[1644648450485,5.344,93.617,93.48,21.35320585]
[1644648450682,5.344,93.617,93.45,12.67]
[1644648450883,2.38366791,93.616,93.45,12.67]
[1644648451084,113.0,93.584,93.45,12.67]
[1644648451287,38.9608311,93.582,93.49,16.0415]
[1644648451685,5.345,93.581,93.49,16.0415]
[1644648452184,5.345,93.581,93.49,28.7115]